[Event "Titled Tuesday Blitz January 10 Late 2023"]
[White "Sourath Biswas"]
[Black "Goncalves, Davi Sulzbacher"]
[WhiteFideId "35091484"]
[BlackFideId "2154510"]
[WhiteElo "2281"]
[BlackElo "2282"]
[Result "1-0"]
[Round "09"]
[TimeControl "180+2"]
[Date "2023.01.10"]
[WhiteClock "0:01:05"]
[BlackClock "0:00:28"]

1. d4 {[%clk 0:00:00]}  Nf6 {[%clk 0:00:00]} 2. Bf4 {[%clk 0:03:00]}  e6 {[%clk 0:02:58]} 3. e3 {[%clk 0:03:00]}  Bd6 {[%clk 0:02:58]} 4. c3 {[%clk 0:03:00]}  Bxf4 {[%clk 0:02:58]} 5. exf4 {[%clk 0:02:57]}  d6 {[%clk 0:02:56]} 6. Nf3 {[%clk 0:02:58]}  b6 {[%clk 0:02:57]} 7. Bd3 {[%clk 0:02:58]}  Bb7 {[%clk 0:02:55]} 8. Nbd2 {[%clk 0:02:57]}  Nc6 {[%clk 0:02:56]} 9. Qe2 {[%clk 0:02:58]}  Ne7 {[%clk 0:02:54]} 10. h4 {[%clk 0:02:58]}  Qd7 {[%clk 0:02:53]} 11. h5 {[%clk 0:02:53]}  h6 {[%clk 0:02:42]} 12. g3 {[%clk 0:02:52]}  O-O-O {[%clk 0:02:42]} 13. Ba6 {[%clk 0:02:41]}  Qa4 {[%clk 0:02:26]} 14. Bxb7+ {[%clk 0:02:40]}  Kxb7 {[%clk 0:02:21]} 15. Qd3 {[%clk 0:02:38]}  Qa6 {[%clk 0:02:22]} 16. Qc2 {[%clk 0:02:33]}  c5 {[%clk 0:02:21]} 17. dxc5 {[%clk 0:02:26]}  bxc5 {[%clk 0:02:18]} 18. Ne4 {[%clk 0:02:11]}  Nxe4 {[%clk 0:02:12]} 19. Qxe4+ {[%clk 0:01:52]}  d5 {[%clk 0:02:05]} 20. Qe3 {[%clk 0:01:52]}  d4 {[%clk 0:01:55]} 21. cxd4 {[%clk 0:01:51]}  cxd4 {[%clk 0:01:43]} 22. Nxd4 {[%clk 0:01:49]}  Qa5+ {[%clk 0:01:14]} 23. Kf1 {[%clk 0:01:48]}  Qd5 {[%clk 0:01:15]} 24. Qb3+ {[%clk 0:01:47]}  Qxb3 {[%clk 0:01:15]} 25. Nxb3 {[%clk 0:01:44]}  Rd5 {[%clk 0:01:13]} 26. Ke2 {[%clk 0:01:42]}  Rc8 {[%clk 0:01:12]} 27. Rac1 {[%clk 0:01:42]}  Rxc1 {[%clk 0:01:08]} 28. Nxc1 {[%clk 0:01:40]}  Nc6 {[%clk 0:01:05]} 29. Nd3 {[%clk 0:01:41]}  Nd4+ {[%clk 0:01:03]} 30. Kd2 {[%clk 0:01:29]}  a5 {[%clk 0:01:00]} 31. g4 {[%clk 0:01:30]}  f5 {[%clk 0:00:45]} 32. g5 {[%clk 0:01:13]}  hxg5 {[%clk 0:00:37]} 33. fxg5 {[%clk 0:01:13]}  Nf3+ {[%clk 0:00:31]} 34. Ke3 {[%clk 0:01:04]}  Nxg5 {[%clk 0:00:31]} 35. Rg1 {[%clk 0:01:04]}  Nh7 {[%clk 0:00:28]} 36. Rxg7+ {[%clk 0:01:05]} 1-0


[Site "https://www.chess.com"]

[Event "Titled Tuesday Blitz January 10 Late 2023"]
[White "Korchmar, Vasiliy"]
[Black "Hoffmann, Asa"]
[WhiteFideId "24131750"]
[BlackFideId "2001470"]
[WhiteElo "2438"]
[BlackElo "2185"]
[Result "0-1"]
[Round "09"]
[TimeControl "180+2"]
[Date "2023.01.10"]
[WhiteClock "0:02:35"]
[BlackClock "0:02:09"]

1. e4 {[%clk 0:00:00]}  d6 {[%clk 0:00:00]} 2. d4 {[%clk 0:03:00]}  Nf6 {[%clk 0:02:59]} 3. Nc3 {[%clk 0:03:00]}  c6 {[%clk 0:02:59]} 4. f3 {[%clk 0:03:00]}  Nbd7 {[%clk 0:02:58]} 5. Be3 {[%clk 0:02:57]}  e5 {[%clk 0:02:58]} 6. Nge2 {[%clk 0:02:57]}  Be7 {[%clk 0:02:57]} 7. Qd2 {[%clk 0:02:56]}  b5 {[%clk 0:02:57]} 8. h4 {[%clk 0:02:56]}  Nb6 {[%clk 0:02:56]} 9. Ng3 {[%clk 0:02:55]}  h5 {[%clk 0:02:55]} 10. O-O-O {[%clk 0:02:51]}  Qc7 {[%clk 0:02:54]} 11. Kb1 {[%clk 0:02:47]}  a6 {[%clk 0:02:51]} 12. dxe5 {[%clk 0:02:46]}  dxe5 {[%clk 0:02:47]} 13. Qf2 {[%clk 0:02:43]}  Rb8 {[%clk 0:02:46]} 14. Bc5 {[%clk 0:02:44]}  b4 {[%clk 0:02:45]} 15. Nce2 {[%clk 0:02:42]}  Na4 {[%clk 0:02:34]} 16. Bxe7 {[%clk 0:02:39]}  Qxe7 {[%clk 0:02:28]} 17. Nc1 {[%clk 0:02:36]}  Nc3+ {[%clk 0:02:27]} 18. bxc3 {[%clk 0:02:37]}  bxc3+ {[%clk 0:02:20]} 19. Ka1 {[%clk 0:02:36]}  Qa3 {[%clk 0:02:20]} 20. Nd3 {[%clk 0:02:35]}  Rb2 {[%clk 0:02:15]} 21. Nc1 {[%clk 0:02:35]}  Rb1+ {[%clk 0:02:11]} 22. Kxb1 {[%clk 0:02:35]}  Qb2# {[%clk 0:02:09]} 0-1


[Site "https://www.chess.com"]

[Event "Titled Tuesday Blitz January 10 Late 2023"]
[White "Bochnicka, Vladimir"]
[Black "Preotu, Razvan"]
[WhiteFideId "14943450"]
[BlackFideId "2613280"]
[WhiteElo "2327"]
[BlackElo "2475"]
[Result "0-1"]
[Round "09"]
[TimeControl "180+2"]
[Date "2023.01.10"]
[WhiteClock "0:01:20"]
[BlackClock "0:01:45"]

1. Nf3 {[%clk 0:00:00]}  c5 {[%clk 0:00:00]} 2. g3 {[%clk 0:03:00]}  Nc6 {[%clk 0:02:55]} 3. Bg2 {[%clk 0:03:01]}  e5 {[%clk 0:02:55]} 4. O-O {[%clk 0:03:02]}  d5 {[%clk 0:02:55]} 5. d3 {[%clk 0:03:03]}  Be7 {[%clk 0:02:56]} 6. Nbd2 {[%clk 0:03:03]}  Be6 {[%clk 0:02:57]} 7. e4 {[%clk 0:03:02]}  d4 {[%clk 0:02:56]} 8. a4 {[%clk 0:03:02]}  h5 {[%clk 0:02:57]} 9. Nc4 {[%clk 0:02:59]}  Qc7 {[%clk 0:02:56]} 10. Ng5 {[%clk 0:02:46]}  Bxg5 {[%clk 0:02:55]} 11. Bxg5 {[%clk 0:02:44]}  f6 {[%clk 0:02:55]} 12. Bd2 {[%clk 0:02:44]}  O-O-O {[%clk 0:02:56]} 13. f4 {[%clk 0:02:43]}  h4 {[%clk 0:02:53]} 14. b3 {[%clk 0:02:40]}  hxg3 {[%clk 0:02:51]} 15. hxg3 {[%clk 0:02:36]}  Nh6 {[%clk 0:02:50]} 16. f5 {[%clk 0:02:37]}  Bxc4 {[%clk 0:02:47]} 17. bxc4 {[%clk 0:02:36]}  Nf7 {[%clk 0:02:42]} 18. Kf2 {[%clk 0:02:35]}  Nb4 {[%clk 0:02:29]} 19. Qb1 {[%clk 0:02:27]}  a5 {[%clk 0:02:20]} 20. Qb2 {[%clk 0:02:08]}  Rh7 {[%clk 0:02:12]} 21. Rh1 {[%clk 0:02:08]}  Rdh8 {[%clk 0:01:53]} 22. Rxh7 {[%clk 0:02:05]}  Rxh7 {[%clk 0:01:54]} 23. Rh1 {[%clk 0:02:04]}  Rxh1 {[%clk 0:01:55]} 24. Bxh1 {[%clk 0:02:04]}  Qd7 {[%clk 0:01:56]} 25. Qb3 {[%clk 0:02:05]}  Kb8 {[%clk 0:01:54]} 26. Bf3 {[%clk 0:02:01]}  Nd6 {[%clk 0:01:53]} 27. Be2 {[%clk 0:02:00]}  Nc8 {[%clk 0:01:53]} 28. c3 {[%clk 0:01:54]}  dxc3 {[%clk 0:01:54]} 29. Bxc3 {[%clk 0:01:54]}  Ka7 {[%clk 0:01:54]} 30. Ke3 {[%clk 0:01:54]}  Nb6 {[%clk 0:01:52]} 31. Bxb4 {[%clk 0:01:41]}  axb4 {[%clk 0:01:46]} 32. a5 {[%clk 0:01:28]}  Na4 {[%clk 0:01:45]} 33. Bd1 {[%clk 0:01:24]}  Qd4+ {[%clk 0:01:45]} 34. Kf3 {[%clk 0:01:19]}  Nc3 {[%clk 0:01:44]} 35. Bc2 {[%clk 0:01:20]}  Qg1 {[%clk 0:01:45]} 0-1


[Site "https://www.chess.com"]

[Event "Titled Tuesday Blitz January 10 Late 2023"]
[White "Ongut, Tamas Gunes"]
[Black "Golubev, Mikhail"]
[WhiteFideId "770280"]
[BlackFideId "14100983"]
[WhiteElo "2299"]
[BlackElo "2461"]
[Result "1-0"]
[Round "09"]
[TimeControl "180+2"]
[Date "2023.01.10"]
[WhiteClock "0:00:47"]
[BlackClock "0:00:10"]

1. d4 {[%clk 0:00:00]}  Nf6 {[%clk 0:00:00]} 2. c4 {[%clk 0:02:58]}  g6 {[%clk 0:02:59]} 3. Nc3 {[%clk 0:02:57]}  Bg7 {[%clk 0:02:59]} 4. e4 {[%clk 0:02:56]}  d6 {[%clk 0:02:59]} 5. Be2 {[%clk 0:02:53]}  O-O {[%clk 0:02:59]} 6. Be3 {[%clk 0:02:53]}  c5 {[%clk 0:02:59]} 7. d5 {[%clk 0:02:54]}  e6 {[%clk 0:02:50]} 8. h4 {[%clk 0:02:36]}  exd5 {[%clk 0:02:50]} 9. cxd5 {[%clk 0:02:19]}  Re8 {[%clk 0:02:48]} 10. f3 {[%clk 0:02:16]}  Nh5 {[%clk 0:02:43]} 11. Qd2 {[%clk 0:02:15]}  Ng3 {[%clk 0:02:28]} 12. Rh2 {[%clk 0:02:10]}  f5 {[%clk 0:02:16]} 13. Bf4 {[%clk 0:02:09]}  Nh5 {[%clk 0:02:12]} 14. Bg5 {[%clk 0:02:03]}  Qb6 {[%clk 0:01:32]} 15. g4 {[%clk 0:02:00]}  fxg4 {[%clk 0:01:24]} 16. fxg4 {[%clk 0:02:00]}  Ng3 {[%clk 0:00:52]} 17. O-O-O {[%clk 0:01:57]}  Nxe4 {[%clk 0:00:52]} 18. Nxe4 {[%clk 0:01:50]}  Rxe4 {[%clk 0:00:50]} 19. Bd3 {[%clk 0:01:51]}  Rd4 {[%clk 0:00:49]} 20. Re2 {[%clk 0:01:47]}  Bxg4 {[%clk 0:00:36]} 21. Re8+ {[%clk 0:01:37]}  Kf7 {[%clk 0:00:10]} 22. Re7+ {[%clk 0:01:31]}  Kg8 {[%clk 0:00:10]} 23. Bh6 {[%clk 0:01:17]}  Bxh6 {[%clk 0:00:10]} 24. Qxh6 {[%clk 0:00:47]} 1-0


[Site "https://www.chess.com"]

[Event "Titled Tuesday Blitz January 10 Late 2023"]
[White "Bayo Milagro, Alvaro"]
[Black "Novikov, Evgenij"]
[WhiteFideId "22275240"]
[BlackFideId "4125380"]
[WhiteElo "2287"]
[BlackElo "2276"]
[Result "0-1"]
[Round "09"]
[TimeControl "180+2"]
[Date "2023.01.10"]
[WhiteClock "0:00:02"]
[BlackClock "0:00:11"]

1. e4 {[%clk 0:00:00]}  c5 {[%clk 0:00:00]} 2. Nf3 {[%clk 0:03:00]}  d6 {[%clk 0:02:59]} 3. Bb5+ {[%clk 0:03:00]}  Bd7 {[%clk 0:02:58]} 4. Bxd7+ {[%clk 0:02:58]}  Nxd7 {[%clk 0:02:57]} 5. O-O {[%clk 0:02:58]}  Ngf6 {[%clk 0:02:58]} 6. Re1 {[%clk 0:02:58]}  e6 {[%clk 0:02:57]} 7. d3 {[%clk 0:02:58]}  Be7 {[%clk 0:02:56]} 8. Nbd2 {[%clk 0:02:59]}  O-O {[%clk 0:02:55]} 9. c3 {[%clk 0:02:59]}  b5 {[%clk 0:02:55]} 10. d4 {[%clk 0:03:00]}  cxd4 {[%clk 0:02:53]} 11. cxd4 {[%clk 0:02:57]}  Nb6 {[%clk 0:02:49]} 12. Nf1 {[%clk 0:02:55]}  a5 {[%clk 0:02:50]} 13. Ng3 {[%clk 0:02:43]}  a4 {[%clk 0:02:44]} 14. Bd2 {[%clk 0:02:42]}  Nc4 {[%clk 0:02:38]} 15. Bc3 {[%clk 0:02:39]}  Qb6 {[%clk 0:02:36]} 16. b3 {[%clk 0:02:27]}  Na5 {[%clk 0:02:35]} 17. bxa4 {[%clk 0:02:15]}  Rfc8 {[%clk 0:02:06]} 18. Bxa5 {[%clk 0:01:47]}  Rxa5 {[%clk 0:01:57]} 19. axb5 {[%clk 0:01:45]}  Qxb5 {[%clk 0:01:54]} 20. e5 {[%clk 0:01:46]}  Nd5 {[%clk 0:01:51]} 21. exd6 {[%clk 0:01:38]}  Bxd6 {[%clk 0:01:49]} 22. Ne4 {[%clk 0:01:35]}  Bb4 {[%clk 0:01:49]} 23. Rb1 {[%clk 0:01:35]}  Qa6 {[%clk 0:01:44]} 24. Rf1 {[%clk 0:01:25]}  Rxa2 {[%clk 0:01:27]} 25. Ne5 {[%clk 0:01:17]}  Be7 {[%clk 0:01:25]} 26. Qh5 {[%clk 0:01:17]}  g6 {[%clk 0:00:54]} 27. Qf3 {[%clk 0:00:55]}  f5 {[%clk 0:00:49]} 28. Nc5 {[%clk 0:00:54]}  Bxc5 {[%clk 0:00:43]} 29. dxc5 {[%clk 0:00:48]}  Rxc5 {[%clk 0:00:37]} 30. Qg3 {[%clk 0:00:48]}  Qd6 {[%clk 0:00:24]} 31. Rfe1 {[%clk 0:00:34]}  Ra8 {[%clk 0:00:20]} 32. Qg5 {[%clk 0:00:26]}  Qe7 {[%clk 0:00:19]} 33. Qd2 {[%clk 0:00:21]}  Rd8 {[%clk 0:00:19]} 34. Rbd1 {[%clk 0:00:18]}  Rcc8 {[%clk 0:00:18]} 35. Qh6 {[%clk 0:00:13]}  Nc3 {[%clk 0:00:17]} 36. Rxd8+ {[%clk 0:00:06]}  Rxd8 {[%clk 0:00:15]} 37. Nf3 {[%clk 0:00:05]}  Nd5 {[%clk 0:00:16]} 38. h3 {[%clk 0:00:04]}  Nf6 {[%clk 0:00:14]} 39. Ng5 {[%clk 0:00:04]}  e5 {[%clk 0:00:14]} 40. Qh4 {[%clk 0:00:04]}  e4 {[%clk 0:00:12]} 41. f3 {[%clk 0:00:04]}  Re8 {[%clk 0:00:12]} 42. fxe4 {[%clk 0:00:02]}  fxe4 {[%clk 0:00:10]} 43. Qf4 {[%clk 0:00:02]}  Kg7 {[%clk 0:00:11]} 44. Kh2 {[%clk 0:00:03]}  h6 {[%clk 0:00:11]} 45. Nxe4 {[%clk 0:00:02]}  Nxe4 {[%clk 0:00:11]} 0-1


[Site "https://www.chess.com"]

[Event "Titled Tuesday Blitz January 10 Late 2023"]
[White "Fisher_TheGalactic"]
[Black "Arencibia Monduy, Antonio"]
[BlackFideId "3507939"]
[WhiteElo "2556"]
[BlackElo "2122"]
[Result "1-0"]
[Round "09"]
[TimeControl "180+2"]
[Date "2023.01.10"]
[WhiteClock "0:00:39"]
[BlackClock "0:00:05"]

1. Nf3 {[%clk 0:00:00]}  d5 {[%clk 0:00:00]} 2. g3 {[%clk 0:03:00]}  Nf6 {[%clk 0:02:56]} 3. Bg2 {[%clk 0:03:01]}  e6 {[%clk 0:02:56]} 4. O-O {[%clk 0:03:01]}  Be7 {[%clk 0:02:53]} 5. d3 {[%clk 0:03:01]}  O-O {[%clk 0:02:51]} 6. Nbd2 {[%clk 0:03:01]}  b6 {[%clk 0:02:52]} 7. e4 {[%clk 0:03:02]}  Bb7 {[%clk 0:02:52]} 8. exd5 {[%clk 0:03:02]}  exd5 {[%clk 0:02:53]} 9. Re1 {[%clk 0:03:02]}  Nbd7 {[%clk 0:02:48]} 10. Nf1 {[%clk 0:03:02]}  Re8 {[%clk 0:02:45]} 11. Bf4 {[%clk 0:03:02]}  Nc5 {[%clk 0:02:43]} 12. Ne5 {[%clk 0:03:02]}  Ne6 {[%clk 0:02:38]} 13. Bd2 {[%clk 0:02:57]}  c5 {[%clk 0:02:36]} 14. Ne3 {[%clk 0:02:51]}  Qc7 {[%clk 0:02:33]} 15. Nf5 {[%clk 0:02:45]}  Bf8 {[%clk 0:02:22]} 16. Ng4 {[%clk 0:02:44]}  Nxg4 {[%clk 0:02:22]} 17. Qxg4 {[%clk 0:02:36]}  Kh8 {[%clk 0:01:45]} 18. Rad1 {[%clk 0:02:37]}  Rad8 {[%clk 0:01:37]} 19. Nh4 {[%clk 0:02:20]}  d4 {[%clk 0:01:34]} 20. Bxb7 {[%clk 0:02:18]}  Qxb7 {[%clk 0:01:28]} 21. Qf3 {[%clk 0:02:16]}  Qxf3 {[%clk 0:01:29]} 22. Nxf3 {[%clk 0:02:16]}  f6 {[%clk 0:01:28]} 23. Re2 {[%clk 0:02:17]}  Kg8 {[%clk 0:01:25]} 24. Rde1 {[%clk 0:02:15]}  Kf7 {[%clk 0:01:20]} 25. Nh4 {[%clk 0:02:15]}  g6 {[%clk 0:01:21]} 26. Ng2 {[%clk 0:02:08]}  Bd6 {[%clk 0:01:14]} 27. f4 {[%clk 0:02:04]}  Nc7 {[%clk 0:01:12]} 28. Rxe8 {[%clk 0:02:00]}  Nxe8 {[%clk 0:01:11]} 29. Nh4 {[%clk 0:01:58]}  Nc7 {[%clk 0:01:07]} 30. Nf3 {[%clk 0:01:57]}  Nd5 {[%clk 0:01:05]} 31. Kf2 {[%clk 0:01:57]}  Rc8 {[%clk 0:01:05]} 32. b3 {[%clk 0:01:56]}  Re8 {[%clk 0:01:00]} 33. Rxe8 {[%clk 0:01:56]}  Kxe8 {[%clk 0:00:34]} 34. Nh4 {[%clk 0:01:54]}  Kf7 {[%clk 0:00:35]} 35. Ng2 {[%clk 0:01:54]}  Ke6 {[%clk 0:00:32]} 36. Kf3 {[%clk 0:01:54]}  Nc7 {[%clk 0:00:32]} 37. a4 {[%clk 0:01:54]}  Nd5 {[%clk 0:00:28]} 38. Ne1 {[%clk 0:01:52]}  Bf8 {[%clk 0:00:26]} 39. Ke2 {[%clk 0:01:49]}  Bd6 {[%clk 0:00:19]} 40. Nf3 {[%clk 0:01:48]}  Kf5 {[%clk 0:00:17]} 41. h3 {[%clk 0:01:46]}  Ke6 {[%clk 0:00:16]} 42. Nh4 {[%clk 0:01:45]}  Ne7 {[%clk 0:00:16]} 43. Ng2 {[%clk 0:01:43]}  f5 {[%clk 0:00:15]} 44. Ne1 {[%clk 0:01:41]}  Nd5 {[%clk 0:00:15]} 45. Nf3 {[%clk 0:01:40]}  Kf6 {[%clk 0:00:15]} 46. Be1 {[%clk 0:01:40]}  h6 {[%clk 0:00:14]} 47. Nd2 {[%clk 0:01:31]}  g5 {[%clk 0:00:15]} 48. Nc4 {[%clk 0:01:28]}  Bc7 {[%clk 0:00:14]} 49. fxg5+ {[%clk 0:01:27]}  hxg5 {[%clk 0:00:14]} 50. Kf3 {[%clk 0:01:19]}  Kg6 {[%clk 0:00:15]} 51. Bd2 {[%clk 0:01:13]}  Kh5 {[%clk 0:00:13]} 52. g4+ {[%clk 0:01:12]}  fxg4+ {[%clk 0:00:12]} 53. hxg4+ {[%clk 0:01:12]}  Kg6 {[%clk 0:00:13]} 54. Na3 {[%clk 0:01:13]}  a6 {[%clk 0:00:13]} 55. Nc4 {[%clk 0:01:04]}  Kf6 {[%clk 0:00:11]} 56. Ke4 {[%clk 0:01:02]}  Ne7 {[%clk 0:00:11]} 57. b4 {[%clk 0:00:59]}  cxb4 {[%clk 0:00:07]} 58. Bxb4 {[%clk 0:00:58]}  Nc6 {[%clk 0:00:05]} 59. Ba3 {[%clk 0:00:59]}  Ke6 {[%clk 0:00:05]} 60. Bb2 {[%clk 0:00:59]}  b5 {[%clk 0:00:05]} 61. axb5 {[%clk 0:00:58]}  axb5 {[%clk 0:00:05]} 62. Na3 {[%clk 0:00:58]}  b4 {[%clk 0:00:06]} 63. Nb5 {[%clk 0:00:58]}  Bb6 {[%clk 0:00:05]} 64. Nxd4+ {[%clk 0:00:59]}  Bxd4 {[%clk 0:00:04]} 65. Bxd4 {[%clk 0:00:56]}  Na5 {[%clk 0:00:03]} 66. Bb6 {[%clk 0:00:57]}  b3 {[%clk 0:00:03]} 67. cxb3 {[%clk 0:00:55]}  Nxb3 {[%clk 0:00:02]} 68. Bd8 {[%clk 0:00:54]}  Nc5+ {[%clk 0:00:03]} 69. Ke3 {[%clk 0:00:48]}  Nd7 {[%clk 0:00:03]} 70. d4 {[%clk 0:00:48]}  Kf7 {[%clk 0:00:01]} 71. Bxg5 {[%clk 0:00:44]}  Ke6 {[%clk 0:00:01]} 72. Ke4 {[%clk 0:00:44]}  Nb6 {[%clk 0:00:01]} 73. Bf4 {[%clk 0:00:44]}  Nd5 {[%clk 0:00:01]} 74. Be5 {[%clk 0:00:42]}  Nc3+ {[%clk 0:00:02]} 75. Kf3 {[%clk 0:00:43]}  Nd5 {[%clk 0:00:02]} 76. Kg3 {[%clk 0:00:43]}  Kf7 {[%clk 0:00:03]} 77. Kh4 {[%clk 0:00:42]}  Kg6 {[%clk 0:00:02]} 78. g5 {[%clk 0:00:42]}  Nc3 {[%clk 0:00:03]} 79. Kg4 {[%clk 0:00:42]}  Nd5 {[%clk 0:00:03]} 80. Bd6 {[%clk 0:00:43]}  Ne3+ {[%clk 0:00:03]} 81. Kf4 {[%clk 0:00:40]}  Nd5+ {[%clk 0:00:01]} 82. Ke5 {[%clk 0:00:38]}  Nb6 {[%clk 0:00:02]} 83. Be7 {[%clk 0:00:38]}  Nc4+ {[%clk 0:00:02]} 84. Ke6 {[%clk 0:00:38]}  Nb6 {[%clk 0:00:02]} 85. d5 {[%clk 0:00:38]}  Nc4 {[%clk 0:00:01]} 86. d6 {[%clk 0:00:38]}  Nb6 {[%clk 0:00:01]} 87. d7 {[%clk 0:00:38]}  Nxd7 {[%clk 0:00:01]} 88. Kxd7 {[%clk 0:00:38]}  Kf7 {[%clk 0:00:01]} 89. Kd6 {[%clk 0:00:39]}  Kg6 {[%clk 0:00:01]} 90. Ke6 {[%clk 0:00:39]}  Kg7 {[%clk 0:00:02]} 91. Kf5 {[%clk 0:00:40]}  Kg8 {[%clk 0:00:02]} 92. Bf6 {[%clk 0:00:40]}  Kf7 {[%clk 0:00:02]} 93. g6+ {[%clk 0:00:40]}  Kg8 {[%clk 0:00:02]} 94. Ke6 {[%clk 0:00:40]}  Kf8 {[%clk 0:00:03]} 95. g7+ {[%clk 0:00:40]}  Kg8 {[%clk 0:00:04]} 96. Ke7 {[%clk 0:00:39]}  Kh7 {[%clk 0:00:05]} 97. Kf7 {[%clk 0:00:39]} 1-0


[Site "https://www.chess.com"]

[Event "Titled Tuesday Blitz January 10 Late 2023"]
[White "Sivakumar, Shaaketh"]
[Black "Al-Tarboush, Ward"]
[WhiteFideId "30940176"]
[BlackFideId "7601450"]
[WhiteElo "2337"]
[BlackElo "2256"]
[Result "0-1"]
[Round "09"]
[TimeControl "180+2"]
[Date "2023.01.10"]
[WhiteClock "0:00:02"]
[BlackClock "0:00:28"]

1. d4 {[%clk 0:00:00]}  Nf6 {[%clk 0:00:00]} 2. Nf3 {[%clk 0:02:33]}  g6 {[%clk 0:02:58]} 3. g3 {[%clk 0:02:34]}  Bg7 {[%clk 0:02:59]} 4. Bg2 {[%clk 0:02:28]}  O-O {[%clk 0:02:59]} 5. O-O {[%clk 0:02:28]}  d5 {[%clk 0:02:59]} 6. b3 {[%clk 0:02:29]}  c5 {[%clk 0:02:58]} 7. Bb2 {[%clk 0:02:29]}  cxd4 {[%clk 0:02:56]} 8. Nxd4 {[%clk 0:02:30]}  Nc6 {[%clk 0:02:56]} 9. Nxc6 {[%clk 0:02:27]}  bxc6 {[%clk 0:02:56]} 10. Nd2 {[%clk 0:02:22]}  Bf5 {[%clk 0:02:57]} 11. c4 {[%clk 0:02:20]}  a5 {[%clk 0:02:56]} 12. a3 {[%clk 0:02:15]}  Rb8 {[%clk 0:02:46]} 13. Rc1 {[%clk 0:02:12]}  Qb6 {[%clk 0:02:44]} 14. Bc3 {[%clk 0:02:05]}  d4 {[%clk 0:02:38]} 15. Ba1 {[%clk 0:01:55]}  e5 {[%clk 0:02:35]} 16. Nf3 {[%clk 0:01:53]}  Rfe8 {[%clk 0:02:32]} 17. Nxe5 {[%clk 0:01:46]}  Rxe5 {[%clk 0:02:31]} 18. Bxd4 {[%clk 0:01:41]}  Qc7 {[%clk 0:02:29]} 19. Bxe5 {[%clk 0:01:36]}  Qxe5 {[%clk 0:02:28]} 20. Bxc6 {[%clk 0:01:34]}  h5 {[%clk 0:02:29]} 21. e3 {[%clk 0:01:33]}  h4 {[%clk 0:02:29]} 22. Qd4 {[%clk 0:01:25]}  Qe6 {[%clk 0:02:28]} 23. Qa7 {[%clk 0:01:21]}  Qxc6 {[%clk 0:02:25]} 24. Qxb8+ {[%clk 0:01:01]}  Kh7 {[%clk 0:02:20]} 25. Qf4 {[%clk 0:01:00]}  h3 {[%clk 0:02:21]} 26. f3 {[%clk 0:00:58]}  Bh6 {[%clk 0:02:17]} 27. Qd4 {[%clk 0:00:54]}  Ng4 {[%clk 0:02:16]} 28. Rce1 {[%clk 0:00:53]}  Bg5 {[%clk 0:02:13]} 29. e4 {[%clk 0:00:47]}  Bf6 {[%clk 0:01:49]} 30. Qd5 {[%clk 0:00:43]}  Qb6+ {[%clk 0:01:45]} 31. c5 {[%clk 0:00:43]}  Qb5 {[%clk 0:01:31]} 32. fxg4 {[%clk 0:00:40]}  Be6 {[%clk 0:01:16]} 33. Qd2 {[%clk 0:00:39]}  Qxc5+ {[%clk 0:01:13]} 34. Kh1 {[%clk 0:00:25]}  Bg5 {[%clk 0:01:13]} 35. b4 {[%clk 0:00:25]}  Qe5 {[%clk 0:01:09]} 36. Qf2 {[%clk 0:00:24]}  a4 {[%clk 0:01:07]} 37. Qa7 {[%clk 0:00:22]}  Kg8 {[%clk 0:01:03]} 38. Rf2 {[%clk 0:00:21]}  Qc3 {[%clk 0:00:57]} 39. Ref1 {[%clk 0:00:18]}  Be3 {[%clk 0:00:56]} 40. Rxf7 {[%clk 0:00:16]}  Bxa7 {[%clk 0:00:50]} 41. Rxa7 {[%clk 0:00:14]}  Bc4 {[%clk 0:00:47]} 42. Ra8+ {[%clk 0:00:12]}  Kg7 {[%clk 0:00:44]} 43. Ra7+ {[%clk 0:00:09]}  Kh6 {[%clk 0:00:44]} 44. g5+ {[%clk 0:00:10]}  Kxg5 {[%clk 0:00:45]} 45. Ra5+ {[%clk 0:00:06]}  Kh6 {[%clk 0:00:45]} 46. Rc5 {[%clk 0:00:06]}  Qb3 {[%clk 0:00:44]} 47. Rxc4 {[%clk 0:00:07]}  Qxc4 {[%clk 0:00:40]} 48. Kg1 {[%clk 0:00:05]}  Qe2 {[%clk 0:00:40]} 49. Rf2 {[%clk 0:00:05]}  Qe1+ {[%clk 0:00:40]} 50. Rf1 {[%clk 0:00:05]}  Qxe4 {[%clk 0:00:39]} 51. Rf2 {[%clk 0:00:06]}  Qd5 {[%clk 0:00:39]} 52. Re2 {[%clk 0:00:06]}  Qd4+ {[%clk 0:00:32]} 53. Kf1 {[%clk 0:00:05]}  Qd3 {[%clk 0:00:31]} 54. b5 {[%clk 0:00:05]}  Qxb5 {[%clk 0:00:31]} 55. Kf2 {[%clk 0:00:03]}  Qb3 {[%clk 0:00:31]} 56. Re3 {[%clk 0:00:03]}  Qc2+ {[%clk 0:00:31]} 57. Kf3 {[%clk 0:00:04]}  Qg2+ {[%clk 0:00:31]} 58. Kg4 {[%clk 0:00:04]}  Qxh2 {[%clk 0:00:31]} 59. Re4 {[%clk 0:00:05]}  Qg2 {[%clk 0:00:30]} 60. Rxa4 {[%clk 0:00:03]}  h2 {[%clk 0:00:30]} 61. Ra8 {[%clk 0:00:02]}  Qe4+ {[%clk 0:00:30]} 62. Kh3 {[%clk 0:00:02]}  h1=Q# {[%clk 0:00:28]} 0-1


[Site "https://www.chess.com"]

[Event "Titled Tuesday Blitz January 10 Late 2023"]
[White "Kleiman, Jake"]
[Black "Becerra, Juan David"]
[WhiteFideId "2020041"]
[BlackFideId "4404998"]
[WhiteElo "2399"]
[BlackElo "2382"]
[Result "1-0"]
[Round "09"]
[TimeControl "180+2"]
[Date "2023.01.10"]
[WhiteClock "0:00:13"]
[BlackClock "0:00:12"]

1. e4 {[%clk 0:00:00]}  e5 {[%clk 0:00:00]} 2. Nf3 {[%clk 0:02:58]}  Nc6 {[%clk 0:02:58]} 3. Bc4 {[%clk 0:02:57]}  Bc5 {[%clk 0:02:57]} 4. c3 {[%clk 0:02:58]}  Nf6 {[%clk 0:02:56]} 5. d3 {[%clk 0:02:57]}  O-O {[%clk 0:02:56]} 6. O-O {[%clk 0:02:58]}  d5 {[%clk 0:02:54]} 7. exd5 {[%clk 0:02:59]}  Nxd5 {[%clk 0:02:52]} 8. Re1 {[%clk 0:03:00]}  Bg4 {[%clk 0:02:52]} 9. h3 {[%clk 0:03:00]}  Bh5 {[%clk 0:02:50]} 10. Nbd2 {[%clk 0:03:00]}  Nb6 {[%clk 0:02:50]} 11. Bb5 {[%clk 0:03:01]}  f6 {[%clk 0:02:44]} 12. Ne4 {[%clk 0:03:00]}  Be7 {[%clk 0:02:40]} 13. Ng3 {[%clk 0:02:59]}  Bg6 {[%clk 0:02:39]} 14. d4 {[%clk 0:02:59]}  exd4 {[%clk 0:02:38]} 15. Bxc6 {[%clk 0:02:53]}  bxc6 {[%clk 0:02:27]} 16. Nxd4 {[%clk 0:02:54]}  Qd7 {[%clk 0:02:26]} 17. Qf3 {[%clk 0:02:54]}  c5 {[%clk 0:02:21]} 18. Ndf5 {[%clk 0:02:44]}  Rae8 {[%clk 0:02:06]} 19. Be3 {[%clk 0:02:40]}  Bd6 {[%clk 0:02:02]} 20. Rad1 {[%clk 0:02:29]}  Qa4 {[%clk 0:01:39]} 21. a3 {[%clk 0:02:26]}  Nc4 {[%clk 0:01:23]} 22. Bc1 {[%clk 0:02:00]}  Bxg3 {[%clk 0:01:19]} 23. Nxg3 {[%clk 0:01:52]}  Rxe1+ {[%clk 0:01:13]} 24. Rxe1 {[%clk 0:01:39]}  Ne5 {[%clk 0:01:04]} 25. Qd5+ {[%clk 0:01:38]}  Bf7 {[%clk 0:01:04]} 26. Qd1 {[%clk 0:01:21]}  Qxd1 {[%clk 0:01:02]} 27. Rxd1 {[%clk 0:01:17]}  c4 {[%clk 0:00:49]} 28. Be3 {[%clk 0:01:17]}  a6 {[%clk 0:00:49]} 29. Ne4 {[%clk 0:01:10]}  Rb8 {[%clk 0:00:42]} 30. Nc5 {[%clk 0:01:03]}  a5 {[%clk 0:00:41]} 31. f4 {[%clk 0:00:42]}  Nd3 {[%clk 0:00:33]} 32. Nxd3 {[%clk 0:00:39]}  cxd3 {[%clk 0:00:23]} 33. Rxd3 {[%clk 0:00:38]}  a4 {[%clk 0:00:24]} 34. Bc5 {[%clk 0:00:39]}  Bb3 {[%clk 0:00:22]} 35. Bb4 {[%clk 0:00:33]}  Rb5 {[%clk 0:00:20]} 36. Rd8+ {[%clk 0:00:25]}  Kf7 {[%clk 0:00:19]} 37. Rd7+ {[%clk 0:00:22]}  Kg6 {[%clk 0:00:19]} 38. Rxc7 {[%clk 0:00:22]}  Rd5 {[%clk 0:00:18]} 39. g4 {[%clk 0:00:22]}  Rd2 {[%clk 0:00:18]} 40. Bf8 {[%clk 0:00:16]}  h5 {[%clk 0:00:17]} 41. Rxg7+ {[%clk 0:00:14]}  Kh6 {[%clk 0:00:11]} 42. g5+ {[%clk 0:00:13]}  fxg5 {[%clk 0:00:12]} 43. fxg5# {[%clk 0:00:13]} 1-0


[Site "https://www.chess.com"]